bitfinex/quotes_SOLUSD_20240708
["timestamp","ask_amount","ask_price","bid_price","bid_amount"]
[1720478160976,0.34,140.82,140.76,16.348671]
[1720478161182,7.4413,140.82,140.76,16.348671]
[1720478161373,7.1018,140.81,140.76,16.348671]
[1720478161757,0.34,140.82,140.76,16.348671]
[1720478162275,7.4413,140.82,140.76,16.348671]
[1720478162474,10.49401958,140.85,140.76,16.348671]
[1720478162677,7.0998,140.85,140.79,6.0003]
[1720478162876,16.2911486,140.88,140.79,6.0003]
[1720478163188,7.1005,140.84,140.79,6.0003]
[1720478163562,7.1008,140.83,140.79,6.0003]
[1720478163778,0.17,140.84,140.79,6.0003]
[1720478163978,37.90357186,140.87,140.79,6.0003]
[1720478164589,20.15647186,140.87,140.8,15.427]
[1720478164788,16.76145228,140.87,140.8,15.427]
[1720478165105,7.1002,140.84,140.8,15.427]
[1720478165273,9.66245228,140.87,140.8,15.427]
[1720478165274,7.1009,140.83,140.8,15.427]
[1720478165478,37.32559408,140.87,140.8,15.427]
[1720478165479,7.1003,140.84,140.8,15.427]
[1720478165696,7.1008,140.83,140.8,15.427]
[1720478166486,7.101,140.83,140.8,15.427]
[1720478166686,0.34,140.82,140.8,15.427]
[1720478166984,7.101,140.83,140.8,15.427]
[1720478167401,7.4413,140.82,140.8,15.427]
[1720478167604,7.1019,140.81,140.77,15.1186]
[1720478167787,17.7495,140.85,140.77,15.1186]
[1720478167985,0.17,140.82,140.77,15.1186]
[1720478168191,0.17,140.84,140.77,15.1186]
[1720478168393,7.1008,140.83,140.77,15.1186]
[1720478168821,0.17,140.82,140.77,15.1186]
[1720478169108,7.1014,140.82,140.77,15.1186]
[1720478169284,7.2719,140.81,140.77,15.1186]
[1720478169484,7.1019,140.81,140.77,15.1186]
[1720478169798,7.1029,140.79,140.77,15.1186]
[1720478170386,7.1029,140.79,140.76,0.385271]
[1720478170588,7.1034,140.78,140.76,0.385271]
[1720478170785,7.1029,140.79,140.76,0.385271]
[1720478173006,23.29840326,140.85,140.77,15.2819]
[1720478173317,26.06149408,140.87,140.77,21.2954]
[1720478173318,25.95699408,140.87,140.77,21.2954]
[1720478173512,9.9162418,140.86,140.77,21.2954]
[1720478173827,7.1027,140.8,140.77,15.2819]
[1720478174195,17.7521,140.83,140.77,15.2819]
[1720478174516,0.17,140.79,140.77,15.2819]
[1720478174811,0.34,140.79,140.77,15.2819]
[1720478176009,7.1015,140.82,140.77,15.2819]
[1720478176311,7.4418,140.81,140.77,15.2819]
[1720478176517,0.17,140.79,140.77,15.2819]
[1720478177019,0.17,140.79,140.76,0.385271]
[1720478177020,0.34,140.81,140.76,0.385271]
[1720478177189,0.17,140.81,140.76,0.385271]
[1720478177392,7.2737,140.77,140.76,0.385271]
[1720478177603,7.4437,140.77,140.76,0.385271]
[1720478178990,7.1028,140.79,140.76,0.385271]
[1720478179203,9.66245228,140.81,140.76,0.385271]
[1720478179507,7.4425,140.8,140.76,0.385271]
[1720478179713,0.17,140.78,140.76,0.385271]
[1720478180095,7.2737,140.77,140.76,0.385271]
[1720478180294,7.4437,140.77,140.76,0.385271]
[1720478184123,0.17,140.72,140.68,16.4347]
[1720478184301,0.34,140.72,140.68,16.4347]
[1720478184616,7.4463,140.72,140.68,16.4347]
[1720478185431,0.34,140.72,140.68,16.4347]
[1720478185713,7.1051,140.75,140.68,35.7747]
[1720478185899,7.1053,140.74,140.68,35.7747]
[1720478187110,7.1058,140.73,140.68,35.7747]
[1720478187317,0.17,140.74,140.68,16.4347]
[1720478187992,7.2755,140.74,140.68,16.4347]
[1720478188412,7.105,140.75,140.68,16.4347]
[1720478188823,7.1054,140.74,140.68,16.4347]
[1720478190696,7.1059,140.73,140.68,16.4347]
[1720478192098,7.4455,140.74,140.68,16.4347]
[1720478192424,7.1044,140.76,140.68,16.4347]
[1720478192817,7.1048,140.75,140.68,16.4347]
[1720478193622,7.1054,140.74,140.68,16.4347]
[1720478193923,9.66245228,140.77,140.68,16.4347]
[1720478194223,7.1054,140.74,140.68,16.4347]
[1720478195993,7.1058,140.73,140.68,16.4347]
[1720478197719,7.1039,140.77,140.69,22.3658]
[1720478198032,3.71258189,140.86,140.75,6.6023]
[1720478198232,24.44738189,140.88,140.75,6.6023]
[1720478198433,50.11527043,140.88,140.75,6.6023]
[1720478198615,9.71,140.85,140.8,9.71]
[1720478198816,7.1017,140.81,140.79,9.71]
[1720478199128,9.71,140.84,140.79,9.71]
[1720478199333,7.1019,140.81,140.79,9.71]
[1720478200029,7.1022,140.8,140.75,6.6023]
[1720478200341,7.1022,140.8,140.79,9.71]
[1720478200513,7.1022,140.8,140.75,6.6023]
[1720478201122,7.1016,140.82,140.75,6.6023]
[1720478202629,7.1029,140.79,140.75,6.6023]
[1720478203027,7.1024,140.8,140.75,6.6023]
[1720478203224,0.17,140.83,140.75,6.6023]
[1720478203429,7.1025,140.8,140.75,6.6023]
[1720478204818,7.1028,140.79,140.75,6.6023]
[1720478205034,0.17,140.82,140.75,6.6023]
[1720478205249,0.34,140.82,140.75,6.6023]
[1720478205847,7.1045,140.76,140.74,22.2958]
[1720478206020,7.104,140.77,140.74,22.2958]
[1720478206350,7.1038,140.77,140.74,22.2958]
[1720478206645,7.1035,140.78,140.74,22.2958]
[1720478208142,7.1038,140.77,140.74,22.2958]
[1720478208821,0.17,140.78,140.74,15.7635]
[1720478209139,7.1045,140.76,140.74,15.7635]
[1720478209641,7.104,140.77,140.74,15.7635]
[1720478210060,7.1045,140.76,140.74,15.7635]
[1720478210713,7.1047,140.75,140.74,15.7635]
[1720478211546,7.1053,140.74,140.7,41.8269]
[1720478215841,7.1045,140.76,140.7,41.8269]
[1720478216253,7.1048,140.75,140.7,41.8269]
[1720478216951,7.1053,140.74,140.7,41.8269]
[1720478217348,7.105,140.75,140.7,41.8269]
[1720478217748,7.1054,140.74,140.7,41.8269]
[1720478217945,17.9294,140.78,140.7,41.8269]
[1720478218145,7.1055,140.74,140.7,41.8269]
[1720478218848,7.1059,140.73,140.7,41.8269]
[1720478219159,7.105,140.75,140.7,41.8269]
[1720478219527,7.1056,140.74,140.7,22.4069]
[1720478220553,7.1051,140.75,140.73,9.72]
[1720478221360,7.1053,140.74,140.73,9.72]
[1720478221862,7.1053,140.74,140.7,22.4069]
[1720478222050,7.1053,140.74,140.72,9.72]
[1720478222435,7.1058,140.73,140.7,22.4069]
[1720478222944,7.1058,140.73,140.72,9.72]
[1720478223126,7.1055,140.74,140.72,9.72]
[1720478223327,7.105,140.75,140.73,9.72]
[1720478223555,7.2743,140.76,140.74,9.72]
[1720478223778,7.2743,140.76,140.75,9.72]
[1720478224065,7.2743,140.76,140.72,9.72]
[1720478224066,10.06,140.76,140.72,9.72]
[1720478224232,7.1058,140.73,140.7,22.4069]
[1720478224432,7.1058,140.73,140.72,9.72]
[1720478224639,7.1063,140.72,140.7,22.4069]
[1720478224857,7.1068,140.71,140.7,15.8746]
[1720478225354,7.1068,140.71,140.69,9.72]
[1720478226271,27.6545,140.73,140.67,6.0936]
[1720478226444,7.107,140.71,140.68,9.72]
[1720478226944,7.107,140.71,140.69,9.72]
[1720478227147,7.2765,140.72,140.69,9.72]
[1720478227454,7.1068,140.71,140.69,9.72]
[1720478228769,7.1081,140.69,140.66,15.0936]
[1720478229062,7.1083,140.68,140.66,15.0936]
[1720478229241,7.1088,140.67,140.66,15.0936]
[1720478229439,18.1104,140.69,140.62,0.885271]
[1720478229639,7.11,140.65,140.62,0.885271]
[1720478229847,7.1105,140.64,140.62,10.605271]
[1720478230052,9.89,140.66,140.62,0.885271]
[1720478230247,7.1108,140.63,140.62,0.885271]
[1720478231443,7.1129,140.59,140.56,15.0936]
[1720478231645,7.113,140.59,140.56,15.0936]
[1720478231868,0.17,140.6,140.56,24.8136]
[1720478232042,7.2825,140.6,140.57,9.72]
[1720478232239,0.17,140.6,140.58,9.72]
[1720478232859,0.17,140.6,140.56,15.0936]
[1720478233047,0.17,140.6,140.58,9.72]
[1720478233250,0.17,140.6,140.56,15.0936]
[1720478233563,7.1128,140.59,140.57,9.72]
[1720478233768,7.1126,140.6,140.56,15.0936]
[1720478233969,7.1126,140.6,140.57,9.72]
[1720478234173,0.17,140.59,140.53,15.0805]
[1720478234387,0.17,140.57,140.56,9.72]
[1720478234680,0.17,140.57,140.53,15.0805]
[1720478234882,0.34,140.57,140.53,15.0805]
[1720478235476,7.1119,140.61,140.53,34.5605]
[1720478235860,7.1115,140.62,140.53,34.5605]
[1720478236061,7.1121,140.61,140.53,34.5605]
[1720478236475,17.7747,140.65,140.53,34.5605]
[1720478236662,7.1137,140.58,140.53,15.0805]
[1720478236885,17.7811,140.6,140.53,15.0805]
[1720478237187,7.4531,140.59,140.53,15.0805]
[1720478238167,0.34,140.59,140.53,15.0805]
[1720478238369,7.453,140.59,140.53,15.0805]
[1720478238879,0.17,140.57,140.53,15.0805]
[1720478239064,0.34,140.57,140.53,15.0805]
[1720478239265,0.17,140.55,140.53,15.0805]
[1720478239581,7.284,140.57,140.53,15.0805]
[1720478239878,0.34,140.57,140.53,15.0805]
[1720478240271,7.1126,140.6,140.53,15.0805]
[1720478240473,0.34,140.59,140.53,15.0805]
[1720478240979,7.4528,140.59,140.53,15.0805]
[1720478241169,7.1134,140.58,140.53,15.0805]
[1720478242054,7.4531,140.59,140.53,15.0805]
[1720478242260,7.2841,140.57,140.53,15.0805]
[1720478242574,0.17,140.56,140.53,15.0805]
[1720478243181,0.34,140.57,140.53,15.0805]
[1720478244476,0.34,140.58,140.53,15.0805]
[1720478244669,35.80734326,140.64,140.53,15.0805]
[1720478244872,35.80734326,140.64,140.55,6.2558]
[1720478244873,7.1113,140.63,140.55,6.2558]
[1720478245189,17.7684,140.7,140.57,19.48]
[1720478245492,7.1086,140.68,140.57,19.48]
[1720478245697,16.84085049,140.69,140.61,22.2303]
[1720478245980,7.1076,140.7,140.63,19.48]
[1720478246181,7.1078,140.69,140.63,19.48]
[1720478246756,7.1084,140.68,140.63,19.48]
[1720478246962,7.1085,140.68,140.63,19.48]
[1720478247470,7.1088,140.67,140.63,19.48]
[1720478247672,17.7675,140.71,140.61,22.2303]
[1720478247673,0.17,140.7,140.61,41.7103]
[1720478247869,7.1086,140.68,140.61,41.7103]
[1720478248382,7.1081,140.69,140.61,41.7103]
[1720478248590,7.1075,140.7,140.61,41.7103]
[1720478248763,7.1079,140.69,140.61,41.7103]
[1720478249386,7.1074,140.7,140.61,41.7103]
[1720478249799,7.1074,140.7,140.64,19.48]
[1720478250090,17.7661,140.72,140.64,19.48]
[1720478250269,7.1091,140.67,140.64,19.48]
[1720478250470,7.1094,140.66,140.61,41.7103]
[1720478251094,7.109,140.67,140.61,41.7103]
[1720478251269,0.17,140.68,140.61,41.7103]
[1720478251591,0.17,140.64,140.61,41.7103]
[1720478252080,45.26855049,140.71,140.61,41.7103]
[1720478252081,7.1094,140.66,140.61,41.7103]
[1720478252263,7.449,140.67,140.61,41.7103]
[1720478252669,7.1093,140.66,140.61,41.7103]
[1720478253390,7.11,140.65,140.61,41.7103]
[1720478253589,7.2806,140.64,140.61,22.2303]
[1720478253795,7.1106,140.64,140.61,22.2303]
[1720478254089,7.4501,140.65,140.61,22.2303]
[1720478254803,7.1104,140.64,140.61,22.2303]
[1720478256788,7.281,140.63,140.61,15.9745]
[1720478256993,0.17,140.63,140.61,15.9745]
[1720478257167,7.1112,140.63,140.61,15.9745]
[1720478257508,0.34,140.65,140.61,15.9745]
[1720478258180,7.45,140.65,140.61,15.9745]
[1720478258405,7.1105,140.64,140.61,15.9745]
[1720478258573,0.17,140.63,140.61,15.9745]
[1720478259404,7.2809,140.63,140.61,15.9745]
[1720478259892,7.4513,140.62,140.61,15.9745]
[1720478260511,7.4513,140.62,140.58,25.6342]
[1720478260883,0.34,140.62,140.58,6.1542]
[1720478261079,7.4515,140.62,140.58,6.1542]
[1720478263486,9.73295049,140.67,140.58,6.1542]
[1720478263687,0.17,140.66,140.58,25.6342]
[1720478263895,0.17,140.64,140.58,25.6342]
[1720478264121,7.4503,140.64,140.58,25.6342]
[1720478264896,7.1108,140.63,140.58,25.6342]
[1720478266718,0.17,140.62,140.58,25.6342]
[1720478266915,0.34,140.64,140.58,6.1542]
[1720478267118,0.17,140.64,140.58,6.1542]
[1720478267320,7.1116,140.62,140.58,6.1542]
[1720478267702,7.2811,140.63,140.58,6.1542]
[1720478268014,0.17,140.64,140.58,6.1542]
[1720478268204,7.1096,140.66,140.58,25.6342]
[1720478268404,36.57274721,140.71,140.61,19.48]
[1720478268721,7.1087,140.68,140.62,16.5231]
[1720478269427,27.50035049,140.71,140.63,6.1307]
[1720478269799,7.1094,140.66,140.63,6.1307]
[1720478270019,7.1098,140.65,140.63,6.1307]
[1720478270523,0.17,140.69,140.63,6.1307]
[1720478271204,7.1097,140.66,140.63,6.1307]
[1720478272602,17.9396,140.69,140.59,15.8712]
[1720478272603,7.1099,140.65,140.59,15.8712]
[1720478272804,7.1099,140.65,140.59,35.3512]
[1720478273314,7.1096,140.66,140.59,35.3512]
[1720478273631,7.1095,140.66,140.59,35.3512]
[1720478273830,0.17,140.66,140.59,35.3512]
[1720478274034,7.1108,140.63,140.59,35.3512]
[1720478274534,7.1106,140.64,140.59,35.3512]
[1720478275535,0.17,140.63,140.59,15.8712]
[1720478275733,7.1111,140.63,140.59,15.8712]
[1720478276305,7.4504,140.64,140.59,15.8712]
[1720478276502,7.1109,140.63,140.59,15.8712]
[1720478278139,7.1115,140.62,140.59,15.8712]
[1720478278631,7.1111,140.63,140.59,15.8712]
[1720478280637,7.4503,140.64,140.59,15.8712]
[1720478280846,7.1095,140.66,140.59,15.8712]
[1720478281148,7.1104,140.64,140.59,15.8712]
[1720478281929,7.1101,140.65,140.59,15.8712]
[1720478282130,0.34,140.64,140.59,15.8712]
[1720478282523,17.77,140.69,140.59,15.8712]
[1720478282727,9.73295049,140.7,140.59,15.8712]
[1720478282911,9.73295049,140.7,140.6,19.48]
[1720478283341,7.1085,140.68,140.6,19.48]
[1720478283711,7.1085,140.68,140.61,6.1005]
[1720478283917,7.1089,140.67,140.61,6.1005]
[1720478284938,7.1093,140.66,140.61,6.1005]
[1720478285438,7.109,140.67,140.61,6.1005]
[1720478286014,7.1085,140.68,140.61,6.1005]
[1720478286318,7.1089,140.67,140.61,6.1005]
[1720478286520,7.1093,140.66,140.61,6.1005]
[1720478287018,18.1104,140.69,140.61,6.1005]
[1720478287226,7.1101,140.65,140.61,6.1005]
[1720478288717,7.1104,140.64,140.61,6.1005]
[1720478289349,7.1109,140.63,140.61,6.1005]
[1720478289743,7.1113,140.62,140.59,15.8712]
[1720478290535,7.111,140.63,140.59,15.8712]
[1720478292546,7.1113,140.62,140.61,9.73]
[1720478294140,0.34,140.64,140.59,15.8712]
[1720478294141,7.1119,140.61,140.59,15.8712]
[1720478294340,7.1119,140.61,140.6,9.73]
[1720478296251,7.1123,140.6,140.59,15.8712]
[1720478296555,7.1123,140.6,140.59,25.6012]
[1720478296759,7.1133,140.58,140.56,16.2622]
[1720478296932,0.17,140.61,140.56,16.2622]
[1720478297240,0.34,140.6,140.57,9.73]
[1720478297442,0.34,140.6,140.56,16.2622]
[1720478297443,7.1136,140.58,140.56,16.2622]
[1720478297846,7.1136,140.58,140.57,9.73]
[1720478298431,7.2821,140.61,140.57,9.73]
[1720478298663,7.2821,140.61,140.6,9.73]
[1720478298962,7.1124,140.6,140.59,9.73]
[1720478299635,7.1123,140.6,140.59,9.73]
[1720478301260,0.17,140.62,140.59,9.73]
[1720478301471,0.17,140.63,140.6,9.73]
[1720478301634,7.1121,140.61,140.59,9.73]
[1720478302032,7.1114,140.62,140.6,9.73]
[1720478302253,7.1118,140.61,140.6,9.73]
[1720478302646,7.1115,140.62,140.59,9.73]
[1720478302859,0.34,140.63,140.56,25.9922]
[1720478302860,7.111,140.63,140.56,25.9922]
[1720478303163,7.111,140.63,140.62,9.73]
[1720478303345,20.0,140.64,140.62,9.73]
[1720478303548,20.0,140.65,140.62,9.73]
[1720478303740,24.49990219,140.66,140.63,9.73]
[1720478303942,7.1101,140.65,140.64,9.73]
[1720478304536,7.1101,140.65,140.57,23.0826]
[1720478304743,7.1104,140.64,140.59,19.46]
[1720478306463,7.1108,140.63,140.59,19.46]
[1720478309567,7.1108,140.63,140.6,22.4656]
[1720478309769,7.109,140.67,140.6,22.4656]
[1720478309968,9.07239672,140.69,140.62,19.46]
[1720478309969,7.1081,140.69,140.62,19.46]
[1720478310172,7.1084,140.68,140.63,16.3736]
[1720478310482,3.72907203,140.7,140.63,16.3736]
[1720478310651,7.1096,140.66,140.63,16.3736]
[1720478314480,7.1099,140.65,140.63,16.3736]
[1720478314976,17.9408,140.69,140.63,16.3736]
[1720478314977,7.1103,140.64,140.63,16.3736]
[1720478315971,0.17,140.65,140.6,21.33]
[1720478316178,0.34,140.66,140.6,21.33]
[1720478316380,7.11,140.65,140.6,21.33]
[1720478316756,7.1104,140.64,140.6,21.33]
[1720478317276,0.34,140.66,140.6,21.33]
[1720478317277,7.1101,140.65,140.6,21.33]
[1720478317871,7.4494,140.66,140.6,21.33]
[1720478318068,7.1099,140.65,140.6,21.33]
[1720478318384,7.4495,140.66,140.6,21.33]
[1720478318879,7.1101,140.65,140.6,21.33]
[1720478319653,0.34,140.66,140.6,40.79]
[1720478319875,7.1102,140.65,140.6,40.79]
[1720478320276,7.1103,140.64,140.6,40.79]
[1720478320485,7.1103,140.64,140.6,21.33]
[1720478321575,7.1109,140.63,140.6,15.238]
[1720478322570,7.1105,140.64,140.6,15.238]
[1720478323376,0.34,140.66,140.6,15.238]
[1720478323588,7.1106,140.64,140.6,15.238]
[1720478325873,0.17,140.66,140.6,15.238]
[1720478326082,7.1095,140.66,140.6,15.238]
[1720478326466,7.1084,140.68,140.61,6.0686]
[1720478326668,9.07239672,140.69,140.66,9.73]
[1720478327068,9.07239672,140.69,140.65,9.73]
[1720478327469,9.07239672,140.69,140.66,9.73]
[1720478327686,3.72852724,140.72,140.68,9.73]
[1720478327869,9.1385616,140.73,140.68,15.8262]
[1720478328076,7.1068,140.71,140.7,9.73]
[1720478328472,7.1078,140.69,140.68,15.8262]
[1720478328670,7.1078,140.69,140.54,100.0]
[1720478328671,7.1085,140.68,140.65,15.8262]
[1720478328871,7.108,140.69,140.67,9.73]
[1720478329080,7.1077,140.7,140.68,9.73]
[1720478329291,7.1077,140.7,140.69,9.73]
[1720478329999,7.1069,140.71,140.69,9.73]
[1720478330169,7.1069,140.71,140.7,9.73]
[1720478330584,7.1069,140.71,140.65,15.8262]
[1720478330894,7.1073,140.7,140.65,15.8262]
[1720478332794,12.30259063,140.75,140.64,19.44]
[1720478332795,3.72852724,140.77,140.67,35.4629]
[1720478333094,3.72852724,140.78,140.7,19.44]
[1720478333284,259.92852724,140.79,140.7,19.44]
[1720478333470,265.64212304,140.79,140.7,19.44]
[1720478333673,7.1038,140.77,140.7,19.44]
[1720478333972,7.1038,140.77,140.72,6.059]
[1720478335071,21.48302724,140.81,140.72,6.059]
[1720478335401,0.17,140.78,140.71,15.1635]
[1720478336286,0.34,140.78,140.71,15.1635]
[1720478336699,7.1053,140.74,140.71,15.1635]
[1720478336997,7.1059,140.73,140.71,15.1635]
[1720478337395,7.1055,140.74,140.71,15.1635]
[1720478338480,0.17,140.74,140.71,15.1635]
[1720478339196,7.2752,140.75,140.71,15.1635]
[1720478339881,7.1052,140.75,140.71,15.1635]
[1720478340790,7.1053,140.74,140.71,15.1635]
[1720478340984,7.105,140.75,140.71,15.1635]
[1720478341179,7.2741,140.77,140.71,34.6035]
[1720478341405,7.1034,140.78,140.71,34.6035]
[1720478341707,23.34064621,140.81,140.71,34.6035]
[1720478341907,5.58594621,140.81,140.71,15.1635]
[1720478342201,7.105,140.75,140.71,15.1635]
[1720478342894,17.7544,140.81,140.71,15.1635]
[1720478343104,7.1034,140.78,140.71,15.1635]
[1720478343685,7.1034,140.78,140.72,19.44]
[1720478343882,7.1039,140.77,140.72,19.44]
[1720478344504,17.7544,140.81,140.72,19.44]
[1720478344802,15.48890276,140.81,140.71,15.1635]
[1720478345306,7.1058,140.73,140.71,15.1635]
[1720478345488,7.1055,140.74,140.71,15.1635]
[1720478345687,7.1051,140.75,140.71,15.1635]
[1720478346287,17.7573,140.79,140.71,15.1635]
[1720478346499,0.17,140.78,140.71,15.1635]
[1720478346698,7.104,140.77,140.71,15.1635]
[1720478346895,5.71317524,140.82,140.72,25.499]
[1720478347080,7.1025,140.8,140.72,25.499]
[1720478348089,7.1029,140.79,140.72,25.499]
[1720478349009,7.1038,140.77,140.72,25.499]
[1720478349820,7.1035,140.78,140.72,25.499]
[1720478351796,17.7521,140.83,140.72,25.499]
[1720478351985,7.1026,140.8,140.72,25.499]
[1720478352603,7.1019,140.81,140.72,25.499]
[1720478354101,7.1027,140.79,140.72,25.499]
[1720478354918,0.34,140.8,140.72,25.499]
[1720478355118,7.1041,140.77,140.72,25.499]
[1720478355317,7.1048,140.75,140.72,25.499]
[1720478355609,7.1045,140.76,140.72,6.059]
[1720478356291,7.104,140.77,140.72,6.059]
[1720478358825,7.1034,140.78,140.72,25.499]
[1720478359419,7.1037,140.77,140.72,25.499]
[1720478359918,7.1034,140.78,140.72,25.499]
[1720478360630,7.1038,140.77,140.72,44.899]
[1720478360800,7.1038,140.77,140.76,9.71]
[1720478362432,7.1038,140.77,140.75,9.71]
[1720478363426,7.1035,140.78,140.76,9.71]
[1720478364612,7.1029,140.79,140.77,16.3032]
[1720478364803,7.1029,140.79,140.77,26.0132]
[1720478365000,7.1025,140.8,140.78,9.71]
[1720478365324,7.1025,140.8,140.79,9.71]
[1720478365536,7.1025,140.8,140.78,9.71]
[1720478366431,7.71750783,140.84,140.79,9.71]
[1720478366601,7.71750783,140.84,140.8,9.71]
[1720478366602,7.1017,140.81,140.8,9.71]
[1720478366804,7.1017,140.81,140.79,9.71]
[1720478366998,7.77139493,140.86,140.8,32.2069]
[1720478367304,35.4889,140.89,140.82,9.71]
[1720478367305,9.71,140.87,140.82,9.71]
[1720478367808,43.20640783,140.89,140.82,9.71]
[1720478368003,7.1007,140.83,140.82,9.71]
[1720478368322,7.71750783,140.89,140.82,9.71]
[1720478368522,25.51449493,140.9,140.82,9.71]
[1720478368523,7.099,140.87,140.85,9.71]
[1720478368828,7.099,140.87,140.84,9.71]
[1720478369037,7.099,140.87,140.85,9.71]
[1720478369835,7.0992,140.86,140.81,7.1016]
[1720478370031,7.0992,140.86,140.85,9.71]
[1720478370330,7.0992,140.86,140.84,9.71]
[1720478370532,7.0992,140.86,140.81,7.1016]
[1720478372438,7.1001,140.85,140.8,29.599]
[1720478372664,17.7461,140.88,140.8,22.4969]
[1720478372832,7.1,140.85,140.8,22.4969]
[1720478373034,7.1004,140.84,140.8,22.4969]
[1720478373549,7.0999,140.85,140.8,22.4969]
[1720478373850,7.0999,140.85,140.8,29.599]
[1720478375747,7.1008,140.83,140.8,22.4969]
[1720478376450,0.34,140.82,140.77,16.3032]
[1720478376657,7.1009,140.83,140.78,7.1031]
[1720478377021,7.2694,140.86,140.81,7.1016]
[1720478377229,7.2694,140.86,140.77,16.3032]
[1720478377230,7.0998,140.85,140.8,7.1021]
[1720478377554,7.2699,140.85,140.8,7.1021]
[1720478377727,7.1,140.85,140.8,7.1021]
[1720478378049,17.7447,140.89,140.77,16.3032]
[1720478378425,17.7447,140.89,140.8,7.1018]
[1720478378622,7.0994,140.86,140.81,7.1017]
[1720478380855,0.17,140.88,140.77,16.3032]
[1720478381049,0.34,140.88,140.77,16.3032]
[1720478382054,7.0998,140.85,140.8,7.1019]
[1720478382958,0.17,140.86,140.77,16.3032]
[1720478383124,7.1011,140.83,140.78,7.1032]
[1720478383557,7.1002,140.85,140.79,7.1025]
[1720478383862,0.17,140.88,140.78,19.4]
[1720478384063,0.34,140.88,140.78,19.4]
[1720478384281,7.0994,140.86,140.81,7.1014]
[1720478386081,7.0992,140.86,140.81,7.1016]
[1720478389158,7.0999,140.85,140.8,7.1021]
[1720478389753,7.0995,140.86,140.81,7.1017]
[1720478390553,7.0995,140.86,140.84,9.7]
[1720478390757,7.0998,140.85,140.8,7.1022]
[1720478390966,7.0998,140.85,140.83,9.7]
[1720478393752,7.0995,140.86,140.83,9.7]
[1720478394875,17.747,140.87,140.77,16.3032]
[1720478395059,7.1017,140.82,140.79,9.7]
[1720478395377,7.1015,140.82,140.79,9.7]
[1720478396365,16.801,140.83,140.79,9.7]
[1720478396561,7.1004,140.84,140.8,9.7]
[1720478396778,7.1004,140.84,140.79,7.1026]
[1720478396779,7.1008,140.83,140.79,9.7]
[1720478397169,0.17,140.85,140.79,9.7]
[1720478397379,7.101,140.83,140.79,9.7]
[1720478400684,7.1012,140.82,140.77,16.3032]
[1720478400993,16.801,140.83,140.78,16.8032]
[1720478401493,7.101,140.83,140.79,9.7]
[1720478402072,7.1013,140.82,140.79,9.7]
[1720478402281,7.1013,140.82,140.78,9.7]
[1720478402477,7.2709,140.83,140.78,16.8031]
[1720478402710,16.9709,140.83,140.78,16.8031]
[1720478403790,0.17,140.85,140.8,9.7]
[1720478403968,7.0981,140.89,140.84,16.8001]
[1720478404295,16.7981,140.89,140.84,16.8001]
[1720478404459,7.0981,140.89,140.84,7.1001]
[1720478404655,7.0981,140.89,140.82,22.802]
[1720478404656,7.0982,140.88,140.85,9.7]